[Event "Early-Titled-Tuesday-Blitz-October-03-2023"]
[Site "Chess.com"]
[Date "2023.10.03"]
[Round "1"]
[White "jeetjain"]
[Black "LaPiToB"]
[Result "0-1"]
[WhiteElo "2588"]
[BlackElo "2281"]
[TimeControl "180+1"]
[EndTime "8:08:02 PDT"]
[Termination "LaPiToB won on time"]

1. Nf3 {[%clk 0:02:55.4]} 1... Nf6 {[%clk 0:02:59.2]} 2. g3 {[%clk 0:02:54.4]}
2... e6 {[%clk 0:02:58.4]} 3. Bg2 {[%clk 0:02:55.3]} 3... d5 {[%clk 0:02:58.5]}
4. O-O {[%clk 0:02:54.8]} 4... c5 {[%clk 0:02:58.1]} 5. d4 {[%clk 0:02:53.5]}
5... Nc6 {[%clk 0:02:57]} 6. c4 {[%clk 0:02:48.8]} 6... dxc4 {[%clk 0:02:55.2]}
7. dxc5 {[%clk 0:02:49]} 7... Qxd1 {[%clk 0:02:54.1]} 8. Rxd1 {[%clk 0:02:49.9]}
8... Bxc5 {[%clk 0:02:53.9]} 9. Nbd2 {[%clk 0:02:46]} 9... c3 {[%clk 0:02:53]}
10. bxc3 {[%clk 0:02:46.9]} 10... O-O {[%clk 0:02:52.5]} 11. Nb3 {[%clk
0:02:43.8]} 11... Be7 {[%clk 0:02:52.4]} 12. c4 {[%clk 0:02:43.8]} 12... Bd7
{[%clk 0:02:41]} 13. Bb2 {[%clk 0:02:41]} 13... Rfc8 {[%clk 0:02:40]} 14. Rac1
{[%clk 0:02:33.6]} 14... Be8 {[%clk 0:02:38.2]} 15. Nfd4 {[%clk 0:02:31.5]}
15... Rab8 {[%clk 0:02:29.2]} 16. Nb5 {[%clk 0:02:26.1]} 16... a6 {[%clk
0:02:17.1]} 17. Nd6 {[%clk 0:02:22.1]} 17... Bxd6 {[%clk 0:02:13.2]} 18. Rxd6
{[%clk 0:02:23]} 18... Ne7 {[%clk 0:01:53]} 19. c5 {[%clk 0:02:13.1]} 19... Bc6
{[%clk 0:01:44.5]} 20. Bxf6 {[%clk 0:01:59.8]} 20... gxf6 {[%clk 0:01:42.6]} 21.
Rcd1 {[%clk 0:01:48]} 21... Bxg2 {[%clk 0:01:38.8]} 22. Kxg2 {[%clk 0:01:44.9]}
22... Rc7 {[%clk 0:01:28.6]} 23. Rd7 {[%clk 0:01:30.9]} 23... Rbc8 {[%clk
0:01:27.9]} 24. e4 {[%clk 0:01:18.9]} 24... f5 {[%clk 0:01:22.2]} 25. f3 {[%clk
0:01:17.5]} 25... fxe4 {[%clk 0:01:21.4]} 26. fxe4 {[%clk 0:01:18.4]} 26... Ng6
{[%clk 0:01:17.9]} 27. Rxc7 {[%clk 0:01:11]} 27... Rxc7 {[%clk 0:01:16.8]} 28.
h4 {[%clk 0:01:00.5]} 28... Ne5 {[%clk 0:01:15.3]} 29. Kf2 {[%clk 0:00:51.1]}
29... Nd7 {[%clk 0:01:13.3]} 30. Rc1 {[%clk 0:00:46.3]} 30... b6 {[%clk
0:01:01.6]} 31. cxb6 {[%clk 0:00:42.4]} 31... Rxc1 {[%clk 0:01:00.6]} 32. Nxc1
{[%clk 0:00:43.3]} 32... Nxb6 {[%clk 0:01:00.9]} 33. Ke3 {[%clk 0:00:44.2]}
33... Kg7 {[%clk 0:00:59.6]} 34. Kd4 {[%clk 0:00:42.6]} 34... Kf6 {[%clk
0:00:56.4]} 35. Nd3 {[%clk 0:00:36.5]} 35... Ke7 {[%clk 0:00:49.4]} 36. g4
{[%clk 0:00:30.6]} 36... Kd6 {[%clk 0:00:43.7]} 37. e5+ {[%clk 0:00:22.7]} 37...
Kc6 {[%clk 0:00:38.5]} 38. Nf4 {[%clk 0:00:22.5]} 38... Kd7 {[%clk 0:00:31.9]}
39. a3 {[%clk 0:00:19.4]} 39... Na4 {[%clk 0:00:29.2]} 40. Nh5 {[%clk
0:00:18.3]} 40... Ke7 {[%clk 0:00:28.7]} 41. Nf6 {[%clk 0:00:16.8]} 41... h6
{[%clk 0:00:28.9]} 42. Ng8+ {[%clk 0:00:17.1]} 42... Kf8 {[%clk 0:00:28.3]} 43.
Nxh6 {[%clk 0:00:18]} 43... Kg7 {[%clk 0:00:28.8]} 44. g5 {[%clk 0:00:18.1]}
44... Kg6 {[%clk 0:00:28.2]} 45. Ke4 {[%clk 0:00:16.7]} 45... Nc3+ {[%clk
0:00:27.7]} 46. Kf4 {[%clk 0:00:16.9]} 46... Nb5 {[%clk 0:00:27.5]} 47. Kg4
{[%clk 0:00:16.7]} 47... Nxa3 {[%clk 0:00:27.5]} 48. h5+ {[%clk 0:00:17.1]}
48... Kg7 {[%clk 0:00:27.7]} 49. Kf4 {[%clk 0:00:15.4]} 49... Nc4 {[%clk
0:00:27.8]} 50. Ng4 {[%clk 0:00:15.9]} 50... a5 {[%clk 0:00:27.1]} 51. h6+
{[%clk 0:00:16.8]} 51... Kg6 {[%clk 0:00:25.7]} 52. Ke4 {[%clk 0:00:14.8]} 52...
a4 {[%clk 0:00:25.6]} 53. Kd4 {[%clk 0:00:15.4]} 53... a3 {[%clk 0:00:21.6]} 54.
Kc3 {[%clk 0:00:15.2]} 54... a2 {[%clk 0:00:21.6]} 55. Kxc4 {[%clk 0:00:15.9]}
55... a1=Q {[%clk 0:00:21.9]} 56. Kc5 {[%clk 0:00:15.6]} 56... Qg1+ {[%clk
0:00:21.3]} 57. Kd6 {[%clk 0:00:14]} 57... Qxg4 {[%clk 0:00:21]} 0-1

[Event "Early-Titled-Tuesday-Blitz-October-03-2023"]
[Site "Chess.com"]
[Date "2023.10.03"]
[Round "1"]
[White "wqws"]
[Black "ViktoriyaTarasova"]
[Result "0-1"]
[WhiteElo "2658"]
[BlackElo "2385"]
[TimeControl "180+1"]
[EndTime "8:08:06 PDT"]
[Termination "ViktoriyaTarasova won by checkmate"]

1. e4 {[%clk 0:03:00.6]} 1... e5 {[%clk 0:02:58.7]} 2. Nf3 {[%clk 0:03:00.8]}
2... Nc6 {[%clk 0:02:58.4]} 3. Bb5 {[%clk 0:03:01]} 3... Nf6 {[%clk 0:02:57.6]}
4. O-O {[%clk 0:03:00.4]} 4... Nxe4 {[%clk 0:02:57]} 5. d4 {[%clk 0:03:00.3]}
5... Nd6 {[%clk 0:02:56.8]} 6. Bxc6 {[%clk 0:03:00.3]} 6... dxc6 {[%clk
0:02:57.3]} 7. dxe5 {[%clk 0:03:00.6]} 7... Nf5 {[%clk 0:02:57.7]} 8. Qxd8+
{[%clk 0:02:58.5]} 8... Kxd8 {[%clk 0:02:57.6]} 9. Nc3 {[%clk 0:02:59.2]} 9...
Bd7 {[%clk 0:02:55.9]} 10. Rd1 {[%clk 0:02:58.9]} 10... Kc8 {[%clk 0:02:49.3]}
11. Ne4 {[%clk 0:02:58.4]} 11... h6 {[%clk 0:02:47.6]} 12. h4 {[%clk 0:02:55.9]}
12... Be7 {[%clk 0:02:37.3]} 13. b3 {[%clk 0:02:55.4]} 13... Nxh4 {[%clk
0:02:32.9]} 14. Nxh4 {[%clk 0:02:53.5]} 14... Bxh4 {[%clk 0:02:32]} 15. Ba3
{[%clk 0:02:49.5]} 15... b6 {[%clk 0:02:25.2]} 16. Rd4 {[%clk 0:02:45.5]} 16...
Bd8 {[%clk 0:02:07.2]} 17. Rad1 {[%clk 0:02:44.6]} 17... Be6 {[%clk 0:02:01.7]}
18. f4 {[%clk 0:02:42.4]} 18... c5 {[%clk 0:02:01]} 19. R4d2 {[%clk 0:02:41.8]}
19... Be7 {[%clk 0:01:54.5]} 20. Rf1 {[%clk 0:02:33.3]} 20... g6 {[%clk
0:01:50.2]} 21. c4 {[%clk 0:02:32.9]} 21... Kb7 {[%clk 0:01:47.7]} 22. Bb2
{[%clk 0:02:31.7]} 22... Rad8 {[%clk 0:01:46.4]} 23. Rfd1 {[%clk 0:02:31.5]}
23... Rxd2 {[%clk 0:01:45.2]} 24. Rxd2 {[%clk 0:02:31.1]} 24... Rd8 {[%clk
0:01:45.9]} 25. Rxd8 {[%clk 0:02:26.6]} 25... Bxd8 {[%clk 0:01:46]} 26. Kf2
{[%clk 0:02:27.3]} 26... Kc6 {[%clk 0:01:44.4]} 27. Ke3 {[%clk 0:02:27]} 27...
a6 {[%clk 0:01:38.8]} 28. a4 {[%clk 0:02:14.2]} 28... b5 {[%clk 0:01:36.6]} 29.
axb5+ {[%clk 0:02:13]} 29... axb5 {[%clk 0:01:36.7]} 30. Nd2 {[%clk 0:02:09.4]}
30... bxc4 {[%clk 0:01:19.5]} 31. bxc4 {[%clk 0:02:07.5]} 31... Bh4 {[%clk
0:01:18.5]} 32. Ba3 {[%clk 0:01:49.2]} 32... g5 {[%clk 0:01:01.7]} 33. Ne4
{[%clk 0:01:46.3]} 33... gxf4+ {[%clk 0:00:54.2]} 34. Kxf4 {[%clk 0:01:46.2]}
34... Bxc4 {[%clk 0:00:54.7]} 35. Bxc5 {[%clk 0:01:43.1]} 35... Bd5 {[%clk
0:00:34.8]} 36. Bf8 {[%clk 0:01:41.1]} 36... Bxe4 {[%clk 0:00:29]} 37. Kxe4
{[%clk 0:01:40.4]} 37... Bg5 {[%clk 0:00:29.7]} 38. Kd4 {[%clk 0:01:34]} 38...
Bc1 {[%clk 0:00:24.7]} 39. g4 {[%clk 0:01:33.1]} 39... Bg5 {[%clk 0:00:23.7]}
40. Ke4 {[%clk 0:01:24.3]} 40... Kb5 {[%clk 0:00:20]} 41. Kd5 {[%clk 0:01:10.1]}
41... Bd2 {[%clk 0:00:12]} 42. Be7 {[%clk 0:00:53.7]} 42... c6+ {[%clk
0:00:11.8]} 43. Ke4 {[%clk 0:00:42.4]} 43... c5 {[%clk 0:00:11]} 44. Kf5 {[%clk
0:00:41.3]} 44... c4 {[%clk 0:00:08.9]} 45. Kf6 {[%clk 0:00:17]} 45... Bg5+
{[%clk 0:00:08.1]} 46. Kxf7 {[%clk 0:00:17.1]} 46... Bxe7 {[%clk 0:00:08.9]} 47.
Kxe7 {[%clk 0:00:18]} 47... c3 {[%clk 0:00:09.7]} 48. e6 {[%clk 0:00:18.6]}
48... c2 {[%clk 0:00:10.4]} 49. Kf8 {[%clk 0:00:19.2]} 49... c1=Q {[%clk
0:00:10.6]} 50. e7 {[%clk 0:00:20.1]} 50... Qf4+ {[%clk 0:00:10.3]} 51. Kg8
{[%clk 0:00:19.3]} 51... Qxg4+ {[%clk 0:00:09.5]} 52. Kh7 {[%clk 0:00:19.7]}
52... Qe6 {[%clk 0:00:08.2]} 53. Kh8 {[%clk 0:00:19.4]} 53... Qxe7 {[%clk
0:00:07.9]} 54. Kg8 {[%clk 0:00:20]} 54... Kc6 {[%clk 0:00:08.3]} 55. Kh8 {[%clk
0:00:20.5]} 55... Kd6 {[%clk 0:00:08.6]} 56. Kg8 {[%clk 0:00:21.4]} 56... h5
{[%clk 0:00:08.7]} 57. Kh8 {[%clk 0:00:22.3]} 57... h4 {[%clk 0:00:08.9]} 58.
Kg8 {[%clk 0:00:23.2]} 58... h3 {[%clk 0:00:09.4]} 59. Kh8 {[%clk 0:00:22.9]}
59... h2 {[%clk 0:00:09.6]} 60. Kg8 {[%clk 0:00:23.5]} 60... Ke6 {[%clk
0:00:09.7]} 61. Kh8 {[%clk 0:00:23.1]} 61... h1=Q+ {[%clk 0:00:09.8]} 62. Kg8
{[%clk 0:00:24]} 62... Qg2+ {[%clk 0:00:09.8]} 63. Kh8 {[%clk 0:00:24]} 63...
Qh4# {[%clk 0:00:10]} 0-1

[Event "Early-Titled-Tuesday-Blitz-October-03-2023"]
[Site "Chess.com"]
[Date "2023.10.03"]
[Round "1"]
[White "ArtemDyachuk"]
[Black "KorolDimitriy75"]
[Result "1-0"]
[WhiteElo "2685"]
[BlackElo "2385"]
[TimeControl "180+1"]
[EndTime "8:08:07 PDT"]
[Termination "ArtemDyachuk won on time"]

1. e4 {[%clk 0:03:00.9]} 1... c5 {[%clk 0:03:00.1]} 2. Nf3 {[%clk 0:03:00.6]}
2... d6 {[%clk 0:03:00.3]} 3. d4 {[%clk 0:03:00.8]} 3... cxd4 {[%clk 0:03:01.2]}
4. Nxd4 {[%clk 0:03:01.6]} 4... Nf6 {[%clk 0:03:01.5]} 5. Nc3 {[%clk 0:03:02.2]}
5... g6 {[%clk 0:03:01.8]} 6. Be3 {[%clk 0:03:00.6]} 6... Bg7 {[%clk 0:03:02]}
7. f3 {[%clk 0:03:00.4]} 7... O-O {[%clk 0:03:02.1]} 8. Bc4 {[%clk 0:03:00.5]}
8... Nc6 {[%clk 0:03:02]} 9. Qd2 {[%clk 0:02:59]} 9... Bd7 {[%clk 0:03:01.8]}
10. O-O-O {[%clk 0:02:57]} 10... Qa5 {[%clk 0:03:01.3]} 11. Nb3 {[%clk
0:02:44.9]} 11... Qb4 {[%clk 0:02:59.6]} 12. Bb5 {[%clk 0:02:38.3]} 12... Na5
{[%clk 0:02:20.7]} 13. Bxd7 {[%clk 0:02:30.3]} 13... Nc4 {[%clk 0:01:36]} 14. a3
{[%clk 0:01:55.3]} 14... Nxd2 {[%clk 0:01:06.2]} 15. axb4 {[%clk 0:01:54.2]}
15... Nxb3+ {[%clk 0:01:06.3]} 16. cxb3 {[%clk 0:01:48.6]} 16... Nxd7 {[%clk
0:01:07.2]} 17. Kb1 {[%clk 0:01:35]} 17... Rfc8 {[%clk 0:00:50.4]} 18. Nd5
{[%clk 0:01:34.2]} 18... Kf8 {[%clk 0:00:49.3]} 19. h4 {[%clk 0:01:31.2]} 19...
h6 {[%clk 0:00:20.7]} 20. g4 {[%clk 0:01:22.7]} 20... e6 {[%clk 0:00:19.6]} 21.
Nf4 {[%clk 0:01:22.2]} 21... Ke7 {[%clk 0:00:19.3]} 22. Nd3 {[%clk 0:01:19.6]}
22... Ne5 {[%clk 0:00:18.8]} 23. Nxe5 {[%clk 0:01:19]} 23... Bxe5 {[%clk
0:00:17.7]} 24. Bxh6 {[%clk 0:01:17.6]} 24... Rc6 {[%clk 0:00:15.8]} 25. Bg5+
{[%clk 0:01:14.4]} 25... Bf6 {[%clk 0:00:15.4]} 26. Be3 {[%clk 0:01:11.9]} 26...
a6 {[%clk 0:00:14.4]} 27. g5 {[%clk 0:01:08.1]} 27... Bg7 {[%clk 0:00:12.4]} 28.
h5 {[%clk 0:01:07.8]} 28... gxh5 {[%clk 0:00:12.3]} 29. Rxh5 {[%clk 0:01:08.7]}
29... Rg8 {[%clk 0:00:12.1]} 30. b5 {[%clk 0:00:53.7]} 30... axb5 {[%clk
0:00:11.2]} 31. g6 {[%clk 0:00:54.3]} 31... fxg6 {[%clk 0:00:10.3]} 32. Rxb5
{[%clk 0:00:54.2]} 32... Rc7 {[%clk 0:00:08.3]} 33. Rb6 {[%clk 0:00:51.3]} 33...
Rd7 {[%clk 0:00:08.5]} 34. Bf4 {[%clk 0:00:37.9]} 34... e5 {[%clk 0:00:08.6]}
35. Bg5+ {[%clk 0:00:34.6]} 35... Ke6 {[%clk 0:00:08.5]} 36. Rd3 {[%clk
0:00:25]} 36... Rf8 {[%clk 0:00:08.9]} 37. Bd2 {[%clk 0:00:24.6]} 37... Bf6
{[%clk 0:00:07.3]} 38. Bb4 {[%clk 0:00:24]} 38... Be7 {[%clk 0:00:07.7]} 39. Kc2
{[%clk 0:00:24]} 39... Rf7 {[%clk 0:00:06.3]} 40. Kd2 {[%clk 0:00:23.2]} 40...
Rh7 {[%clk 0:00:06.1]} 41. Ba3 {[%clk 0:00:14.7]} 41... Rh2+ {[%clk 0:00:06.3]}
42. Kc3 {[%clk 0:00:14.8]} 42... Rf2 {[%clk 0:00:04.7]} 43. Kb4 {[%clk
0:00:10.4]} 43... Re2 {[%clk 0:00:03.7]} 44. Ka4 {[%clk 0:00:08.2]} 44... Rf2
{[%clk 0:00:03.9]} 45. b4 {[%clk 0:00:08.4]} 45... Rf1 {[%clk 0:00:03.6]} 46. b5
{[%clk 0:00:08.7]} 46... Rf2 {[%clk 0:00:04]} 47. Kb4 {[%clk 0:00:08.5]} 47...
Rf1 {[%clk 0:00:03.9]} 48. Kb3 {[%clk 0:00:08]} 48... Rf2 {[%clk 0:00:04.1]} 49.
Ka2 {[%clk 0:00:08.4]} 49... Rf1 {[%clk 0:00:04.1]} 50. Rc3 {[%clk 0:00:08.9]}
50... Rf2 {[%clk 0:00:04]} 51. Rc8 {[%clk 0:00:08.8]} 51... Rxf3 {[%clk
0:00:03.8]} 52. Rb8 {[%clk 0:00:08.8]} 52... Re3 {[%clk 0:00:03.1]} 53. R8xb7
{[%clk 0:00:08.5]} 53... Rxe4 {[%clk 0:00:02.2]} 54. Rxd7 {[%clk 0:00:07.9]}
54... Kxd7 {[%clk 0:00:02.4]} 55. Rb7+ {[%clk 0:00:08.5]} 55... Ke6 {[%clk
0:00:02.7]} 56. b6 {[%clk 0:00:09]} 1-0

[Event "Early-Titled-Tuesday-Blitz-October-03-2023"]
[Site "Chess.com"]
[Date "2023.10.03"]
[Round "1"]
[White "AnaKuchava"]
[Black "Russian_berezka"]
[Result "0-1"]
[WhiteElo "2256"]
[BlackElo "2601"]
[TimeControl "180+1"]
[EndTime "8:08:09 PDT"]
[Termination "Russian_berezka won by resignation"]

1. d4 {[%clk 0:03:00.9]} 1... Nf6 {[%clk 0:02:59.5]} 2. Nf3 {[%clk 0:02:59.5]}
2... d5 {[%clk 0:02:59.2]} 3. c4 {[%clk 0:02:54.8]} 3... e6 {[%clk 0:02:59.2]}
4. Nc3 {[%clk 0:02:51.7]} 4... Bb4 {[%clk 0:02:58.9]} 5. Qa4+ {[%clk 0:02:45]}
5... Nc6 {[%clk 0:02:58.2]} 6. e3 {[%clk 0:02:30.1]} 6... O-O {[%clk 0:02:57.7]}
7. Bd3 {[%clk 0:02:24.5]} 7... dxc4 {[%clk 0:02:40.6]} 8. Bxc4 {[%clk
0:02:25.4]} 8... a6 {[%clk 0:02:24.4]} 9. Qc2 {[%clk 0:02:23.4]} 9... Bd6 {[%clk
0:02:23.5]} 10. O-O {[%clk 0:02:14.6]} 10... e5 {[%clk 0:02:23.6]} 11. dxe5
{[%clk 0:02:11.1]} 11... Nxe5 {[%clk 0:02:23.3]} 12. Nxe5 {[%clk 0:01:59.9]}
12... Bxe5 {[%clk 0:02:24.2]} 13. f4 {[%clk 0:01:59.6]} 13... Bd6 {[%clk
0:02:07.4]} 14. Bd2 {[%clk 0:01:47.3]} 14... Bc5 {[%clk 0:01:43.1]} 15. Rae1
{[%clk 0:01:42.1]} 15... Re8 {[%clk 0:01:34.4]} 16. Kh1 {[%clk 0:01:38.1]} 16...
Ng4 {[%clk 0:01:26.2]} 17. Rf3 {[%clk 0:00:58.5]} 17... Qh4 {[%clk 0:01:09.6]}
18. h3 {[%clk 0:00:58.4]} 18... Nf6 {[%clk 0:00:41]} 19. e4 {[%clk 0:00:49.5]}
19... Bg4 {[%clk 0:00:38]} 20. Rd3 {[%clk 0:00:43.9]} 20... Rad8 {[%clk
0:00:33.6]} 21. e5 {[%clk 0:00:39.7]} 21... Nh5 {[%clk 0:00:23.3]} 22. Ne4
{[%clk 0:00:29.5]} 22... Be7 {[%clk 0:00:16]} 23. Rf1 {[%clk 0:00:26.8]} 23...
Bf5 {[%clk 0:00:12.7]} 24. Be1 {[%clk 0:00:23.9]} 24... Bxe4 {[%clk 0:00:07.8]}
25. Bxh4 {[%clk 0:00:23.8]} 25... Bxd3 {[%clk 0:00:08.1]} 26. Bxd3 {[%clk
0:00:24.7]} 26... Bxh4 {[%clk 0:00:08.3]} 27. Bxh7+ {[%clk 0:00:23.8]} 27... Kh8
{[%clk 0:00:07.3]} 28. Bf5 {[%clk 0:00:22.6]} 28... Ng3+ {[%clk 0:00:07.3]} 29.
Kg1 {[%clk 0:00:20.8]} 29... Nxf1 {[%clk 0:00:07.4]} 30. Kxf1 {[%clk 0:00:21.7]}
30... c6 {[%clk 0:00:05.9]} 31. Qb3 {[%clk 0:00:14.7]} 31... Re7 {[%clk
0:00:06.1]} 32. Qf3 {[%clk 0:00:10.6]} 32... g6 {[%clk 0:00:05.7]} 33. Bd3
{[%clk 0:00:08.1]} 33... Red7 {[%clk 0:00:05.8]} 34. Bc2 {[%clk 0:00:05.8]}
34... Rd2 {[%clk 0:00:05.9]} 35. Qg4 {[%clk 0:00:04.2]} 35... Be7 {[%clk
0:00:04.1]} 36. Bxg6 {[%clk 0:00:04.3]} 36... fxg6 {[%clk 0:00:03.8]} 37. Qxg6
{[%clk 0:00:05.2]} 37... Rd1+ {[%clk 0:00:04.3]} 38. Ke2 {[%clk 0:00:05.8]}
38... R1d2+ {[%clk 0:00:04.1]} 39. Kf3 {[%clk 0:00:06.5]} 39... R2d3+ {[%clk
0:00:03.8]} 40. Ke4 {[%clk 0:00:05.4]} 40... R3d4+ {[%clk 0:00:03.8]} 41. Kf5
{[%clk 0:00:05.5]} 41... Bf8 {[%clk 0:00:02.7]} 42. Qh5+ {[%clk 0:00:05.1]}
42... Kg8 {[%clk 0:00:03]} 43. Qg6+ {[%clk 0:00:05.6]} 43... Bg7 {[%clk
0:00:03.6]} 44. Qe6+ {[%clk 0:00:05.4]} 44... Kh8 {[%clk 0:00:03.6]} 45. Qg6
{[%clk 0:00:04.9]} 45... Rf8+ {[%clk 0:00:04.1]} 46. Ke6 {[%clk 0:00:05.3]}
46... Rdxf4 {[%clk 0:00:05]} 47. Qh5+ {[%clk 0:00:05.1]} 47... Kg8 {[%clk
0:00:05.4]} 48. Ke7 {[%clk 0:00:04.9]} 48... Re4 {[%clk 0:00:05.5]} 49. e6
{[%clk 0:00:05]} 49... Bf6+ {[%clk 0:00:05.8]} 50. Kd7 {[%clk 0:00:04.7]} 50...
Rd8+ {[%clk 0:00:05.5]} 51. Kc7 {[%clk 0:00:04.5]} 51... Rxe6 {[%clk 0:00:06.3]}
52. Qg6+ {[%clk 0:00:05.1]} 52... Kf8 {[%clk 0:00:06.6]} 53. Qh7 {[%clk
0:00:04.7]} 53... Re7+ {[%clk 0:00:06.4]} 54. Qxe7+ {[%clk 0:00:04.4]} 54...
Kxe7 {[%clk 0:00:06.7]} 55. Kb6 {[%clk 0:00:04.5]} 55... Bxb2 {[%clk 0:00:07.2]}
0-1

[Event "Early-Titled-Tuesday-Blitz-October-03-2023"]
[Site "Chess.com"]
[Date "2023.10.03"]
[Round "1"]
[White "Mackster23"]
[Black "ljm509"]
[Result "1-0"]
[WhiteElo "2622"]
[BlackElo "2305"]
[TimeControl "180+1"]
[EndTime "8:08:23 PDT"]
[Termination "Mackster23 won on time"]

1. e4 {[%clk 0:02:54.9]} 1... e6 {[%clk 0:02:59.7]} 2. d4 {[%clk 0:02:51.4]}
2... d5 {[%clk 0:02:59.7]} 3. Nc3 {[%clk 0:02:50.8]} 3... dxe4 {[%clk
0:02:59.7]} 4. Nxe4 {[%clk 0:02:49.2]} 4... Nd7 {[%clk 0:03:00.6]} 5. Nf3 {[%clk
0:02:44.8]} 5... Ngf6 {[%clk 0:03:00.4]} 6. Nxf6+ {[%clk 0:02:45.3]} 6... Nxf6
{[%clk 0:03:00.5]} 7. c3 {[%clk 0:02:43.1]} 7... h6 {[%clk 0:02:58.6]} 8. Ne5
{[%clk 0:02:38.2]} 8... Bd6 {[%clk 0:02:55]} 9. Be3 {[%clk 0:02:32.7]} 9... a6
{[%clk 0:02:53.3]} 10. Qf3 {[%clk 0:02:24.1]} 10... c5 {[%clk 0:02:47.9]} 11.
O-O-O {[%clk 0:02:20.5]} 11... Qc7 {[%clk 0:02:47.2]} 12. Nc4 {[%clk 0:02:14.7]}
12... Be7 {[%clk 0:02:14.2]} 13. dxc5 {[%clk 0:02:14.4]} 13... Bxc5 {[%clk
0:02:14.1]} 14. Bxc5 {[%clk 0:02:14]} 14... Qxc5 {[%clk 0:02:15]} 15. Nd6+
{[%clk 0:02:14.1]} 15... Ke7 {[%clk 0:02:15]} 16. Bc4 {[%clk 0:01:18]} 16... Rd8
{[%clk 0:01:27.4]} 17. Nxc8+ {[%clk 0:01:17.3]} 17... Qxc8 {[%clk 0:01:21.3]}
18. Rxd8 {[%clk 0:01:12.8]} 18... Kxd8 {[%clk 0:01:21.2]} 19. Bb3 {[%clk
0:01:04.6]} 19... Qc7 {[%clk 0:01:14]} 20. Rd1+ {[%clk 0:00:56.3]} 20... Ke7
{[%clk 0:01:13.8]} 21. Rd4 {[%clk 0:00:50.1]} 21... Rd8 {[%clk 0:01:10.6]} 22.
Rc4 {[%clk 0:00:49]} 22... Qd7 {[%clk 0:01:03.1]} 23. Rd4 {[%clk 0:00:48.3]}
23... Qc7 {[%clk 0:01:02.5]} 24. Rxd8 {[%clk 0:00:45.8]} 24... Kxd8 {[%clk
0:01:02.4]} 25. g3 {[%clk 0:00:42]} 25... Kc8 {[%clk 0:00:50.7]} 26. h4 {[%clk
0:00:36.2]} 26... Qe5 {[%clk 0:00:46.2]} 27. Bd1 {[%clk 0:00:19.5]} 27... Qe1
{[%clk 0:00:41]} 28. Kc2 {[%clk 0:00:08.6]} 28... Ne4 {[%clk 0:00:40.2]} 29. Be2
{[%clk 0:00:07.8]} 29... Qd2+ {[%clk 0:00:27]} 30. Kb3 {[%clk 0:00:07.2]} 30...
Qd5+ {[%clk 0:00:26.7]} 31. Kc2 {[%clk 0:00:04.7]} 31... Qd2+ {[%clk 0:00:20.6]}
32. Kb3 {[%clk 0:00:05.4]} 32... f5 {[%clk 0:00:20]} 33. Bc4 {[%clk 0:00:04.4]}
33... Qd6 {[%clk 0:00:15.8]} 34. Kc2 {[%clk 0:00:03.6]} 34... Qd2+ {[%clk
0:00:12.9]} 35. Kb3 {[%clk 0:00:04.1]} 35... Qxf2 {[%clk 0:00:11.6]} 36. Qxf2
{[%clk 0:00:04.1]} 36... Nxf2 {[%clk 0:00:11.4]} 37. Bxe6+ {[%clk 0:00:05]}
37... Kc7 {[%clk 0:00:08.4]} 38. Bxf5 {[%clk 0:00:05.9]} 38... Kd6 {[%clk
0:00:08.6]} 39. Kc2 {[%clk 0:00:05.9]} 39... Ke5 {[%clk 0:00:08.5]} 40. g4
{[%clk 0:00:06.5]} 40... Kf4 {[%clk 0:00:07.8]} 41. Bc8 {[%clk 0:00:07.1]} 41...
Nxg4 {[%clk 0:00:07.6]} 42. c4 {[%clk 0:00:07.4]} 42... b5 {[%clk 0:00:05.8]}
43. c5 {[%clk 0:00:07.4]} 43... a5 {[%clk 0:00:05]} 44. c6 {[%clk 0:00:07.2]}
44... Ne5 {[%clk 0:00:05]} 45. c7 {[%clk 0:00:07.5]} 45... Nc6 {[%clk 0:00:03]}
46. Bd7 {[%clk 0:00:07.7]} 46... Na7 {[%clk 0:00:03.2]} 47. c8=Q {[%clk
0:00:08]} 47... Nxc8 {[%clk 0:00:03.2]} 48. Bxc8 {[%clk 0:00:08.9]} 48... g5
{[%clk 0:00:03.6]} 49. hxg5 {[%clk 0:00:08.8]} 49... hxg5 {[%clk 0:00:04.5]} 50.
Kc3 {[%clk 0:00:09.2]} 50... g4 {[%clk 0:00:04.4]} 51. Kd4 {[%clk 0:00:09.5]}
51... g3 {[%clk 0:00:04.5]} 52. Bb7 {[%clk 0:00:10]} 52... b4 {[%clk 0:00:02]}
53. Kc5 {[%clk 0:00:10.2]} 53... Ke3 {[%clk 0:00:01.8]} 54. Kb5 {[%clk
0:00:10.2]} 54... Kd2 {[%clk 0:00:02.4]} 55. Kxa5 {[%clk 0:00:10.5]} 55... Kc2
{[%clk 0:00:03.3]} 56. Kxb4 {[%clk 0:00:11]} 56... Kxb2 {[%clk 0:00:03.7]} 57.
a4 {[%clk 0:00:11.7]} 57... Kc2 {[%clk 0:00:03.9]} 58. Bg2 {[%clk 0:00:12.2]}
58... Kd2 {[%clk 0:00:04.8]} 59. a5 {[%clk 0:00:12.7]} 59... Ke2 {[%clk
0:00:05.7]} 60. a6 {[%clk 0:00:13.3]} 60... Kf2 {[%clk 0:00:06.6]} 61. Bc6
{[%clk 0:00:12.5]} 61... g2 {[%clk 0:00:06.7]} 62. Bxg2 {[%clk 0:00:13]} 62...
Kxg2 {[%clk 0:00:06.9]} 63. a7 {[%clk 0:00:13.9]} 63... Kf2 {[%clk 0:00:06.6]}
64. a8=Q {[%clk 0:00:14.8]} 1-0